fUST/lending_fUST_20250628
["ID","MTS","AMOUNT","RATE_DAILY","PERIOD"]
[368317623,1751115048889,-1611.03,0.0002,2]
[368317624,1751115048899,-460.0,0.0002,2]
[368317625,1751115048908,-460.0,0.0002,2]
[368317626,1751115048918,-460.0,0.0002,2]
[368317627,1751115048927,-676.37,0.0002,2]
[368317628,1751115048936,-2050.89,0.0002,2]
[368317629,1751115048945,-460.0,0.0002,2]
[368317630,1751115048954,-460.0,0.0002,2]
[368317631,1751115048964,-460.0,0.0002,2]
[368317632,1751115048973,-460.0,0.0002,2]
[368317633,1751115048983,-460.0,0.0002,2]
[368317634,1751115048993,-460.0,0.0002,2]
[368317635,1751115049002,-460.0,0.0002,2]
[368317636,1751115049011,-1460.37,0.0002,2]
[368317637,1751115049021,-460.0,0.0002,2]
[368317638,1751115049030,-1746.14,0.0002,2]
[368317639,1751115049039,-460.0,0.0002,2]
[368317640,1751115049049,-460.0,0.0002,2]
[368317641,1751115049058,-460.0,0.0002,2]
[368317642,1751115049068,-460.0,0.0002,2]
[368317643,1751115049077,-782.72,0.0002,2]
[368317644,1751115049087,-491.42,0.0002,2]
[368317645,1751115049096,-460.0,0.0002,2]
[368317646,1751115049106,-2275.84,0.0002,2]
[368317647,1751115049116,-1236.25,0.0002,2]
[368317648,1751115049125,-3183.73,0.0002,2]
[368317649,1751115049135,-460.0,0.0002,2]
[368317650,1751115049144,-531.72,0.0002,2]
[368317651,1751115049154,-460.0,0.0002,2]
[368317652,1751115049164,-460.0,0.0002,2]
[368317653,1751115049174,-460.0,0.0002,2]
[368317654,1751115049183,-1162.18,0.0002,2]
[368317655,1751115049194,-820.51,0.0002,2]
[368317656,1751115049206,-460.0,0.0002,2]
[368317657,1751115049215,-1274.91,0.0002,2]
[368317658,1751115049225,-2958.89,0.0002,2]
[368317659,1751115049234,-460.0,0.0002,2]
[368317660,1751115049243,-460.0,0.0002,2]
[368317661,1751115049253,-460.0,0.0002,2]
[368317662,1751115049263,-754.43,0.0002,2]
[368317663,1751115049272,-460.0,0.0002,2]
[368317664,1751115049281,-751.04,0.0002,2]
[368317665,1751115049292,-474.15,0.0002,2]
[368317666,1751115049302,-485.13560277,0.0002,2]
[368317667,1751115049311,-460.0,0.0002,2]
[368317668,1751115049320,-1103.87,0.0002,2]
[368317669,1751115049330,-160.0,0.00020012,2]
[368317670,1751115049340,-230.28494567,0.00020012,2]
[368317671,1751115049349,-214.95397287,0.00020012,2]
[368317672,1751115049359,-12564.78152626,0.00020012,2]
[368317673,1751115049368,-160.0,0.00020012,2]
[368317674,1751115049378,-213.78848551,0.00020012,2]
[368317675,1751115049387,-160.0,0.00020012,2]
[368317676,1751115049397,-847.18566335,0.00020012,2]
[368317677,1751115049406,-160.0,0.00020012,2]
[368317678,1751115049415,-837.06984471,0.00020012,2]
[368317679,1751115049425,-160.0,0.00020012,2]
[368317680,1751115049436,-160.0,0.00020012,2]
[368317681,1751115049445,-160.0,0.00020012,2]
[368317682,1751115049455,-160.0,0.00020016,3]
[368317683,1751115049466,-412.0,0.00020077,2]
[368317684,1751115049476,-5157.62640033,0.00020107,2]
[368317685,1751115049486,-332.114188,0.00020187,2]
[368317686,1751115049495,-238.79181011,0.00020193,2]
[368317687,1751115049505,-1607.0,0.00020217,2]
[368317688,1751115049515,-1000.0,0.00020268,2]
[368317689,1751115049524,-460.0,0.00020273,2]
[368317690,1751115049533,-460.0,0.00020273,2]
[368317691,1751115049543,-460.0,0.00020273,2]
[368317692,1751115049553,-460.0,0.00020273,2]
[368317693,1751115049562,-460.0,0.00020273,2]
[368317694,1751115049572,-500.0,0.00020273,2]
[368317695,1751115049581,-460.0,0.00020273,2]
[368317696,1751115049590,-460.0,0.00020273,2]
[368317697,1751115049599,-460.0,0.00020273,2]
[368317698,1751115049608,-460.0,0.00020273,2]
[368317699,1751115049618,-532.24,0.00020273,2]
[368317700,1751115049628,-422.36234047,0.00020273,2]
[368317701,1751115049638,-596.99,0.00020273,2]
[368317702,1751115049648,-460.0,0.00020273,2]
[368317703,1751115049657,-710.4,0.00020273,2]
[368317704,1751115049667,-460.0,0.00020273,2]
[368317705,1751115049677,-1344.27,0.00020273,2]
[368317706,1751115049686,-460.0,0.00020273,2]
[368317707,1751115049696,-460.0,0.00020273,2]
[368317708,1751115049705,-460.0,0.00020273,2]
[368317709,1751115049715,-460.0,0.00020273,2]
[368317710,1751115049726,-1439.49,0.00020273,2]
[368317711,1751115049737,-151.0,0.00020273,2]
[368317712,1751115049747,-460.0,0.00020273,2]
[368317713,1751115049758,-1672.88,0.00020273,2]
[368317714,1751115049767,-460.0,0.00020273,2]
[368317715,1751115049777,-460.0,0.00020273,2]
[368317716,1751115049787,-612.5,0.00020273,2]
[368317717,1751115049796,-460.0,0.00020273,2]
[368317718,1751115049806,-460.0,0.00020273,2]
[368317719,1751115049816,-1962.74,0.00020273,2]
[368317720,1751115049827,-460.0,0.00020273,2]
[368317721,1751115049838,-460.0,0.00020273,2]
[368317722,1751115049847,-460.0,0.00020273,2]
[368317723,1751115049857,-460.0,0.00020273,2]
[368317724,1751115049867,-460.0,0.00020273,2]
[368317725,1751115049876,-581.47,0.00020273,2]
[368317726,1751115049886,-548.98,0.00020273,2]
[368317727,1751115049895,-1611.03,0.00020273,2]
[368317728,1751115049903,-460.0,0.00020273,2]
[368317729,1751115049912,-460.0,0.00020273,2]
[368317730,1751115049921,-460.0,0.00020273,2]
[368317731,1751115049930,-676.37,0.00020273,2]
[368317732,1751115049940,-2050.89,0.00020273,2]
[368317733,1751115049949,-460.0,0.00020273,2]
[368317734,1751115049959,-460.0,0.00020273,2]
[368317735,1751115049968,-460.0,0.00020273,2]
[368317736,1751115049977,-460.0,0.00020273,2]
[368317737,1751115049987,-460.0,0.00020273,2]
[368317738,1751115049996,-460.0,0.00020273,2]
[368317739,1751115050005,-1460.37,0.00020273,2]
[368317740,1751115050015,-257.61468776,0.00020273,2]
[368317741,1751115050026,-1746.14,0.00020273,2]
[368317742,1751115050035,-460.0,0.00020273,2]
[368317743,1751115050044,-460.0,0.00020273,2]
[368317744,1751115050054,-460.0,0.00020273,2]
[368317745,1751115050063,-460.0,0.00020273,2]
[368317746,1751115050072,-782.72,0.00020273,2]
[368317747,1751115050081,-491.42,0.00020273,2]
[368317748,1751115050091,-460.0,0.00020273,2]
[368317749,1751115050100,-2275.84,0.00020273,2]
[368317750,1751115050109,-1236.25,0.00020273,2]
[368317751,1751115050119,-3183.73,0.00020273,2]
[368317752,1751115050128,-460.0,0.00020273,2]
[368317753,1751115050137,-531.72,0.00020273,2]
[368317754,1751115050146,-460.0,0.00020273,2]
[368317755,1751115050155,-460.0,0.00020273,2]
[368317756,1751115050164,-460.0,0.00020273,2]
[368317757,1751115050173,-1162.18,0.00020273,2]
[368317758,1751115050183,-820.51,0.00020273,2]
[368317759,1751115050195,-460.0,0.00020273,2]
[368317760,1751115050205,-1274.91,0.00020273,2]
[368317761,1751115050214,-2958.89,0.00020273,2]
[368317762,1751115050223,-460.0,0.00020273,2]
[368317763,1751115050233,-167.14,0.00020273,2]
[368317764,1751115050243,-460.0,0.00020273,2]
[368317765,1751115050253,-754.43,0.00020273,2]
[368317766,1751115050262,-460.0,0.00020273,2]
[368317767,1751115050273,-751.04,0.00020273,2]
[368317768,1751115050282,-474.15,0.00020273,2]
[368317769,1751115050291,-460.0,0.00020273,2]
[368317770,1751115050300,-151.0,0.00020273,2]
[368317771,1751115050310,-1103.87,0.00020273,2]
[368317772,1751115050319,-307.3521965,0.00020274,2]
[368317773,1751115050328,-575.2177202,0.00020274,2]
[368317774,1751115050338,-575.2177202,0.00020274,2]
[368317775,1751115050347,-575.2177202,0.00020274,2]
[368317776,1751115050356,-153.0,0.00020274,2]
[368317777,1751115050366,-153.0,0.00020274,2]
[368317778,1751115050375,-5157.62640033,0.00020314,3]
[368317779,1751115050384,-982.29444606,0.00020489,2]
[368317780,1751115050393,-847.18566335,0.00020521,3]
[368317781,1751115050403,-160.0,0.00020521,3]
[368317782,1751115050412,-5157.62640033,0.00020521,3]
[368317783,1751115050421,-213.78848551,0.00020521,3]
[368317784,1751115050430,-12564.78152626,0.00020521,3]
[368317785,1751115050440,-151.0,0.00020521,2]
[368317786,1751115050449,-151.0,0.00020547,2]
[368317787,1751115050459,-460.0,0.00020547,2]
[368317788,1751115050468,-151.0,0.00020547,2]
[368317789,1751115050477,-151.0,0.00020547,2]
[368317790,1751115050487,-460.0,0.00020547,2]
[368317791,1751115050496,-151.0,0.00020547,2]
[368317792,1751115050506,-460.0,0.00020547,2]
[368317793,1751115050515,-460.0,0.00020547,2]
[368317794,1751115050524,-353.88504285,0.00020547,2]
[368317795,1751115050533,-460.0,0.00020547,2]
[368317796,1751115050542,-460.0,0.00020547,2]
[368317797,1751115050551,-460.0,0.00020547,2]
[368317798,1751115050561,-460.0,0.00020547,2]
[368317799,1751115050571,-532.24,0.00020547,2]
[368317800,1751115050581,-388.56911445,0.00020547,2]
[368317801,1751115050590,-710.4,0.00020547,2]
[368317802,1751115050602,-460.0,0.00020547,2]
[368317803,1751115050614,-1344.27,0.00020547,2]
[368317804,1751115050623,-437.870824,0.00020547,2]
[368317805,1751115050634,-437.870824,0.00020547,2]
[368317806,1751115050644,-460.0,0.00020547,2]
[368317807,1751115050653,-460.0,0.00020547,2]
[368317808,1751115050662,-460.0,0.00020547,2]
[368317809,1751115050672,-460.0,0.00020547,2]
[368317810,1751115050681,-1439.49,0.00020547,2]
[368317811,1751115050690,-460.0,0.00020547,2]
[368317812,1751115050699,-1672.88,0.00020547,2]
[368317813,1751115050708,-460.0,0.00020547,2]
[368317814,1751115050717,-460.0,0.00020547,2]
[368317815,1751115050726,-612.5,0.00020547,2]
[368317816,1751115050735,-460.0,0.00020547,2]
[368317817,1751115050744,-460.0,0.00020547,2]
[368317818,1751115050754,-1962.74,0.00020547,2]
[368317819,1751115050763,-460.0,0.00020547,2]
[368317820,1751115050772,-460.0,0.00020547,2]
[368317821,1751115050782,-460.0,0.00020547,2]
[368317822,1751115050791,-531.21,0.00020547,2]
[368317823,1751115050800,-189.741548,0.00020547,2]
[368317824,1751115050810,-411.83573595,0.00020547,2]
[368317825,1751115050819,-581.47,0.00020547,2]
[368317826,1751115050828,-1611.03,0.00020547,2]
[368317827,1751115050838,-460.0,0.00020547,2]
[368317828,1751115050848,-189.741548,0.00020547,2]
[368317829,1751115050857,-460.0,0.00020547,2]
[368317830,1751115050867,-569.65,0.00020547,2]
[368317831,1751115050876,-676.37,0.00020547,2]
[368317832,1751115050885,-2050.89,0.00020547,2]
[368317833,1751115050895,-460.0,0.00020547,2]
[368317834,1751115050905,-460.0,0.00020547,2]
[368317835,1751115050914,-460.0,0.00020547,2]
[368317836,1751115050924,-460.0,0.00020547,2]
[368317837,1751115050934,-460.0,0.00020547,2]
[368317838,1751115050943,-1460.37,0.00020547,2]
[368317839,1751115050954,-1746.14,0.00020547,2]
[368317840,1751115050963,-460.0,0.00020547,2]
[368317841,1751115050972,-460.0,0.00020547,2]
[368317842,1751115050981,-460.0,0.00020547,2]
[368317843,1751115050990,-460.0,0.00020547,2]
[368317844,1751115051000,-782.72,0.00020547,2]
[368317845,1751115051009,-491.42,0.00020547,2]
[368317846,1751115051019,-1764.119536,0.00020547,2]
[368317847,1751115051029,-526.86064043,0.00020547,2]
[368317848,1751115051038,-2275.84,0.00020547,2]
[368317849,1751115051047,-1236.25,0.00020547,2]
[368317850,1751115051055,-1764.119536,0.00020547,2]
[368317851,1751115051065,-3183.73,0.00020547,2]
[368317852,1751115051074,-460.0,0.00020547,2]
[368317853,1751115051083,-531.72,0.00020547,2]
[368317854,1751115051092,-460.0,0.00020547,2]
[368317855,1751115051102,-345.34,0.00020547,2]
[368317856,1751115051111,-460.0,0.00020547,2]
[368317857,1751115051120,-1162.18,0.00020547,2]
[368317858,1751115051129,-820.51,0.00020547,2]
[368317859,1751115051138,-460.0,0.00020547,2]
[368317860,1751115051147,-1274.91,0.00020547,2]
[368317861,1751115051156,-2958.89,0.00020547,2]
[368317862,1751115051165,-460.0,0.00020547,2]
[368317863,1751115051175,-460.0,0.00020547,2]
[368317864,1751115051184,-754.43,0.00020547,2]
[368317865,1751115051194,-460.0,0.00020547,2]
[368317866,1751115051207,-751.04,0.00020547,2]
[368317867,1751115051217,-474.15,0.00020547,2]
[368317868,1751115051226,-460.0,0.00020547,2]
[368317869,1751115051235,-1103.87,0.00020547,2]
[368317870,1751115051245,-363.222,0.00020704,2]
[368317871,1751115051254,-5157.62640033,0.00020728,3]
[368317872,1751115051263,-207.4,0.00020755,2]
[368317873,1751115051272,-500.0,0.00020755,2]
[368317874,1751115051281,-5000.0,0.00020755,2]
[368317875,1751115051291,-500.0,0.00020755,2]
[368317876,1751115051300,-500.0,0.00020755,2]
[368317877,1751115051310,-500.0,0.00020755,2]
[368317878,1751115051319,-500.0,0.00020755,2]
[368317879,1751115051328,-500.0,0.00020755,2]
[368317880,1751115051340,-500.0,0.00020755,2]
[368317881,1751115051350,-500.0,0.00020755,2]
[368317882,1751115051362,-500.0,0.00020755,2]
[368317883,1751115051372,-500.0,0.00020755,2]
[368317884,1751115051381,-500.0,0.00020755,2]
[368317885,1751115051390,-500.0,0.00020755,2]
[368317886,1751115051399,-500.0,0.00020755,2]
[368317887,1751115051409,-500.0,0.00020755,2]
[368317888,1751115051509,-500.0,0.00020755,2]
[368317889,1751115051531,-500.0,0.00020755,2]
[368317890,1751115051540,-500.0,0.00020755,2]
[368317891,1751115051550,-500.0,0.00020755,2]
[368317892,1751115051560,-160.0,0.00020812,4]
[368317893,1751115051569,-460.0,0.00020821,2]
[368317894,1751115051579,-223.9003636,0.00020821,2]
[368317895,1751115051588,-460.0,0.00020821,2]
[368317896,1751115051597,-460.0,0.00020821,2]
[368317897,1751115051607,-460.0,0.00020821,2]
[368317898,1751115051616,-460.0,0.00020821,2]
[368317899,1751115051626,-460.0,0.00020821,2]
[368317900,1751115051635,-532.24,0.00020821,2]
[368317901,1751115051644,-710.4,0.00020821,2]
[368317902,1751115051654,-460.0,0.00020821,2]
[368317903,1751115051664,-1344.27,0.00020821,2]
[368317904,1751115051673,-191.43,0.00020821,2]
[368317905,1751115051682,-460.0,0.00020821,2]
[368317906,1751115051690,-460.0,0.00020821,2]
[368317907,1751115051699,-460.0,0.00020821,2]
[368317908,1751115051709,-1439.49,0.00020821,2]
[368317909,1751115051718,-151.0,0.00020821,2]
[368317910,1751115051728,-460.0,0.00020821,2]
[368317911,1751115051738,-1672.88,0.00020821,2]
[368317912,1751115051748,-460.0,0.00020821,2]
[368317913,1751115051758,-460.0,0.00020821,2]
[368317914,1751115051767,-612.5,0.00020821,2]
[368317915,1751115051777,-460.0,0.00020821,2]
[368317916,1751115051786,-460.0,0.00020821,2]
[368317917,1751115051796,-1962.74,0.00020821,2]
[368317918,1751115051806,-460.0,0.00020821,2]
[368317919,1751115051815,-460.0,0.00020821,2]
[368317920,1751115051825,-460.0,0.00020821,2]
[368317921,1751115051835,-581.47,0.00020821,2]
[368317922,1751115051845,-1611.03,0.00020821,2]
[368317923,1751115051854,-460.0,0.00020821,2]
[368317924,1751115051863,-460.0,0.00020821,2]
[368317925,1751115051872,-676.37,0.00020821,2]
[368317926,1751115051882,-2050.89,0.00020821,2]
[368317927,1751115051891,-460.0,0.00020821,2]
[368317928,1751115051900,-460.0,0.00020821,2]
[368317929,1751115051912,-460.0,0.00020821,2]
[368317930,1751115051923,-460.0,0.00020821,2]
[368317931,1751115051933,-1460.37,0.00020821,2]
[368317932,1751115051942,-1746.14,0.00020821,2]
[368317933,1751115051952,-460.0,0.00020821,2]
[368317934,1751115051963,-460.0,0.00020821,2]
[368317935,1751115051973,-782.72,0.00020821,2]
[368317936,1751115051982,-491.42,0.00020821,2]
[368317937,1751115051992,-2275.84,0.00020821,2]
[368317938,1751115052001,-1236.25,0.00020821,2]
[368317939,1751115052011,-3183.73,0.00020821,2]
[368317940,1751115052020,-460.0,0.00020821,2]
[368317941,1751115052030,-531.72,0.00020821,2]
[368317942,1751115052039,-460.0,0.00020821,2]
[368317943,1751115052048,-460.0,0.00020821,2]
[368317944,1751115052057,-1162.18,0.00020821,2]
[368317945,1751115052067,-820.51,0.00020821,2]
[368317946,1751115052076,-460.0,0.00020821,2]
[368317947,1751115052085,-1274.91,0.00020821,2]
[368317948,1751115052095,-2958.89,0.00020821,2]
[368317949,1751115052104,-460.0,0.00020821,2]
[368317950,1751115052114,-460.0,0.00020821,2]
[368317951,1751115052123,-754.43,0.00020821,2]
[368317952,1751115052133,-460.0,0.00020821,2]
[368317953,1751115052142,-751.04,0.00020821,2]
[368317954,1751115052151,-474.15,0.00020821,2]
[368317955,1751115052161,-460.0,0.00020821,2]
[368317956,1751115052170,-1103.87,0.00020821,2]
[368317957,1751115052180,-151.0,0.000209,2]
[368317958,1751115052189,-151.0,0.000209,2]
[368317959,1751115052199,-151.0,0.000209,2]
[368317960,1751115052209,-5157.62640033,0.00020934,4]
[368317961,1751115052219,-262.125967,0.00021082,2]
[368317962,1751115052227,-262.125967,0.00021082,2]
[368317963,1751115052237,-63.01626872,0.00021095,2]
[368317964,1751115052246,-151.0,0.00021095,2]
[368317965,1751115052255,-151.0,0.00021095,2]
[368317966,1751115052265,-151.0,0.00021095,2]
[368317967,1751115052274,-154.712361,0.00021095,2]
[368317968,1751115052283,-154.712361,0.00021095,2]
[368317969,1751115052293,-151.0,0.00021095,2]
[368317970,1751115052302,-151.0,0.00021095,2]
[368317971,1751115052311,-151.0,0.00021095,2]
[368317972,1751115052320,-304.493631,0.00021095,2]
[368317973,1751115052329,-304.493631,0.00021095,2]
[368317974,1751115052339,-295.60569757,0.00021095,2]
[368317975,1751115052348,-151.0,0.00021095,2]
[368317976,1751115052357,-460.0,0.00021095,2]
[368317977,1751115052367,-460.0,0.00021095,2]
[368317978,1751115052376,-460.0,0.00021095,2]
[368317979,1751115052385,-151.0,0.00021095,2]
[368317980,1751115052395,-185.990932,0.00021095,2]
[368317981,1751115052404,-185.990932,0.00021095,2]
[368317982,1751115052414,-460.0,0.00021095,2]
[368317983,1751115052423,-460.0,0.00021095,2]
[368317984,1751115052432,-460.0,0.00021095,2]
[368317985,1751115052442,-532.24,0.00021095,2]
[368317986,1751115052451,-710.4,0.00021095,2]
[368317987,1751115052461,-460.0,0.00021095,2]
[368317988,1751115052470,-1344.27,0.00021095,2]
[368317989,1751115052479,-437.870824,0.00021095,2]
[368317990,1751115052489,-437.870824,0.00021095,2]
[368317991,1751115052499,-460.0,0.00021095,2]
[368317992,1751115052508,-479.83,0.00021095,2]
[368317993,1751115052518,-460.0,0.00021095,2]
[368317994,1751115052528,-1439.49,0.00021095,2]
[368317995,1751115052538,-460.0,0.00021095,2]
[368317996,1751115052547,-151.0,0.00021095,2]
[368317997,1751115052556,-1672.88,0.00021095,2]
[368317998,1751115052566,-438.28632599,0.00021095,2]
[368317999,1751115052575,-178.89425727,0.00021095,2]
[368318000,1751115052585,-612.5,0.00021095,2]
[368318001,1751115052594,-460.0,0.00021095,2]
[368318002,1751115052604,-460.0,0.00021095,2]
[368318003,1751115052614,-1962.74,0.00021095,2]
[368318004,1751115052623,-460.0,0.00021095,2]
[368318005,1751115052633,-460.0,0.00021095,2]
[368318006,1751115052642,-460.0,0.00021095,2]
[368318007,1751115052651,-189.741548,0.00021095,2]
[368318008,1751115052661,-581.47,0.00021095,2]
[368318009,1751115052670,-1611.03,0.00021095,2]
[368318010,1751115052680,-460.0,0.00021095,2]
[368318011,1751115052689,-189.741548,0.00021095,2]
[368318012,1751115052698,-460.0,0.00021095,2]
[368318013,1751115052708,-676.37,0.00021095,2]
[368318014,1751115052717,-2050.89,0.00021095,2]
[368318015,1751115052726,-460.0,0.00021095,2]
[368318016,1751115052735,-460.0,0.00021095,2]
[368318017,1751115052744,-460.0,0.00021095,2]
[368318018,1751115052753,-460.0,0.00021095,2]
[368318019,1751115052762,-1460.37,0.00021095,2]
[368318020,1751115052771,-1746.14,0.00021095,2]
[368318021,1751115052780,-460.0,0.00021095,2]
[368318022,1751115052789,-460.0,0.00021095,2]
[368318023,1751115052799,-782.72,0.00021095,2]
[368318024,1751115052808,-491.42,0.00021095,2]
[368318025,1751115052818,-1764.119536,0.00021095,2]
[368318026,1751115052828,-2275.84,0.00021095,2]
[368318027,1751115052838,-1236.25,0.00021095,2]
[368318028,1751115052847,-1764.119536,0.00021095,2]
[368318029,1751115052857,-3183.73,0.00021095,2]
[368318030,1751115052866,-460.0,0.00021095,2]
[368318031,1751115052875,-531.72,0.00021095,2]
[368318032,1751115052884,-460.0,0.00021095,2]
[368318033,1751115052893,-460.0,0.00021095,2]
[368318034,1751115052903,-1162.18,0.00021095,2]
[368318035,1751115052913,-820.51,0.00021095,2]
[368318036,1751115052922,-460.0,0.00021095,2]
[368318037,1751115052932,-1274.91,0.00021095,2]
[368318038,1751115052942,-2958.89,0.00021095,2]
[368318039,1751115052952,-460.0,0.00021095,2]
[368318040,1751115052961,-207.22,0.00021095,2]
[368318041,1751115052970,-754.43,0.00021095,2]
[368318042,1751115052979,-460.0,0.00021095,2]
[368318043,1751115052989,-751.04,0.00021095,2]
[368318044,1751115052998,-474.15,0.00021095,2]
[368318045,1751115053009,-151.0,0.00021095,2]
[368318046,1751115053019,-460.0,0.00021095,2]
[368318047,1751115053029,-1103.87,0.00021095,2]
[368318048,1751115053039,-159.266168,0.00021096,2]
[368318049,1751115053048,-177.5104021,0.00021096,2]
[368318050,1751115053058,-159.266168,0.00021096,2]
[368318051,1751115053067,-177.5104021,0.00021096,2]
[368318052,1751115053079,-159.266168,0.00021096,2]
[368318053,1751115053089,-171.9749283,0.00021096,2]
[368318054,1751115053099,-159.266168,0.00021096,2]
[368318055,1751115053109,-159.266168,0.00021096,2]
[368318056,1751115053120,-318.532336,0.00021096,2]
[368318057,1751115053130,-412.0,0.00021115,2]
[368318058,1751115053139,-6000.0,0.00021126,2]
[368318059,1751115053150,-5157.62640033,0.00021141,4]
[368318060,1751115053159,-982.29444606,0.00021194,2]
[368318061,1751115053168,-177.41445,0.00021226,5]
[368318062,1751115053178,-170.430981,0.00021226,5]
[368318063,1751115053187,-1953.40018551,0.00021269,2]
[368318064,1751115053200,-155.18730198,0.00021288,2]
[368318065,1751115053211,-13904.66620825,0.00021303,2]
[368318066,1751115053222,-5000.0,0.00021303,2]
[368318067,1751115053231,-5157.62640033,0.00021348,5]
[368318068,1751115053241,-151.0,0.00021369,2]
[368318069,1751115053251,-151.0,0.00021369,2]
[368318070,1751115053262,-151.0,0.00021369,2]
[368318071,1751115053272,-151.0,0.00021369,2]
[368318072,1751115053282,-151.0,0.00021369,2]
[368318073,1751115053291,-152.531343,0.00021369,2]
[368318074,1751115053301,-154.598789,0.00021369,2]
[368318075,1751115053310,-189.187077,0.00021369,2]
[368318076,1751115053322,-189.187077,0.00021369,2]
[368318077,1751115053331,-172.4531322,0.00021369,2]
[368318078,1751115053341,-460.0,0.00021369,2]
[368318079,1751115053350,-151.0,0.00021369,2]
[368318080,1751115053359,-151.0,0.00021369,2]
[368318081,1751115053368,-151.0,0.00021369,2]
[368318082,1751115053377,-287.972913,0.00021369,2]
[368318083,1751115053387,-287.972913,0.00021369,2]
[368318084,1751115053396,-460.0,0.00021369,2]
[368318085,1751115053405,-460.0,0.00021369,2]
[368318086,1751115053415,-424.58015984,0.00021369,2]
[368318087,1751115053424,-460.0,0.00021369,2]
[368318088,1751115053434,-460.0,0.00021369,2]
[368318089,1751115053443,-532.24,0.00021369,2]
[368318090,1751115053453,-710.4,0.00021369,2]
[368318091,1751115053462,-460.0,0.00021369,2]
[368318092,1751115053472,-1344.27,0.00021369,2]
[368318093,1751115053482,-460.0,0.00021369,2]
[368318094,1751115053492,-460.0,0.00021369,2]
[368318095,1751115053501,-1439.49,0.00021369,2]
[368318096,1751115053511,-460.0,0.00021369,2]
[368318097,1751115053521,-1672.88,0.00021369,2]
[368318098,1751115053530,-612.5,0.00021369,2]
[368318099,1751115053540,-460.0,0.00021369,2]
[368318100,1751115053549,-460.0,0.00021369,2]
[368318101,1751115053559,-1962.74,0.00021369,2]
[368318102,1751115053569,-460.0,0.00021369,2]
[368318103,1751115053578,-460.0,0.00021369,2]
[368318104,1751115053588,-272.6,0.00021369,2]
[368318105,1751115053598,-581.47,0.00021369,2]
[368318106,1751115053607,-1611.03,0.00021369,2]
[368318107,1751115053617,-460.0,0.00021369,2]
[368318108,1751115053626,-460.0,0.00021369,2]
[368318109,1751115053635,-676.37,0.00021369,2]
[368318110,1751115053643,-2050.89,0.00021369,2]
[368318111,1751115053654,-460.0,0.00021369,2]
[368318112,1751115053663,-460.0,0.00021369,2]
[368318113,1751115053673,-431.279927,0.00021369,2]
[368318114,1751115053682,-460.0,0.00021369,2]
[368318115,1751115053692,-431.279927,0.00021369,2]
[368318116,1751115053702,-460.0,0.00021369,2]
[368318117,1751115053711,-1460.37,0.00021369,2]
[368318118,1751115053720,-1746.14,0.00021369,2]
[368318119,1751115053730,-460.0,0.00021369,2]
[368318120,1751115053740,-460.0,0.00021369,2]
[368318121,1751115053749,-782.72,0.00021369,2]
[368318122,1751115053759,-491.42,0.00021369,2]